bitfinex/quotes_ETHUSD_20260130
["timestamp","ask_amount","ask_price","bid_price","bid_amount"]
[1769800623994,13.85420169,2746.9,2744.9,14.5]
[1769800624397,13.85420169,2746.9,2744.5,0.001]
[1769800624398,0.2335703,2746.0,2744.5,0.001]
[1769800624718,0.763,2746.0,2744.5,12.99498709]
[1769800624887,0.9104483,2745.9,2744.7,12.99398709]
[1769800625220,1.67342817,2746.0,2744.7,12.99398709]
[1769800625520,0.91042817,2746.0,2744.7,12.99398709]
[1769800625716,0.91042817,2746.0,2744.9,12.99398709]
[1769800626219,0.91042817,2746.0,2744.8,0.763]
[1769800626393,0.45519711,2745.9,2744.8,0.763]
[1769800626883,1.01261626,2746.6,2744.8,15.45256079]
[1769800627222,0.91021626,2746.6,2744.8,15.45256079]
[1769800628795,3.64074945,2746.7,2744.8,15.45256079]
[1769800629189,3.64086506,2746.8,2744.8,15.45256079]
[1769800630739,3.64086506,2746.8,2744.8,1.67380777]
[1769800630929,3.64086506,2746.8,2745.1,13.77875302]
[1769800630930,0.91021626,2746.6,2745.1,13.77875302]
[1769800631737,0.91021626,2746.6,2745.0,0.001]
[1769800632343,0.1024,2746.5,2745.0,0.001]
[1769800632839,0.91031569,2746.3,2745.0,0.001]
[1769800633140,0.91031569,2746.3,2745.0,13.77975302]
[1769800633345,0.91031569,2746.3,2745.1,13.77875302]
[1769800633547,0.9102494,2746.5,2745.1,13.77875302]
[1769800634113,0.9102494,2746.5,2745.0,0.001]
[1769800634527,0.9102494,2746.5,2745.0,13.77975302]
[1769800635009,0.1024,2746.6,2745.1,14.68946665]
[1769800635207,0.1024,2746.6,2745.2,13.77875302]
[1769800636267,0.1024,2746.7,2745.2,13.77875302]
[1769800637023,0.91021626,2746.6,2745.2,14.68943256]
[1769800637348,0.91021626,2746.6,2745.2,13.77875302]
[1769800637555,0.91021626,2746.6,2745.2,14.68942756]
[1769800637846,1.7396509,2746.6,2745.2,14.68942756]
[1769800638050,13.23935388,2746.5,2745.0,0.001]
[1769800638252,13.23935388,2746.5,2744.5,0.001]
[1769800638424,13.23935388,2746.5,2744.5,13.77975302]
[1769800638752,0.1024,2746.2,2744.7,13.77875302]
[1769800638953,1.7396509,2746.6,2744.8,0.1024]
[1769800639162,0.90998434,2747.3,2745.1,13.77875302]
[1769800639532,0.1024,2747.1,2745.1,13.77875302]
[1769800639732,0.2335703,2747.0,2745.1,13.77875302]
[1769800639933,0.90998434,2747.3,2745.1,13.77875302]
[1769800639934,13.23935388,2747.1,2745.1,13.77875302]
[1769800641020,0.91014999,2746.8,2745.2,14.68943348]
[1769800641220,0.455075,2746.7,2745.3,13.77875302]
[1769800642031,0.455075,2746.7,2744.5,0.001]
[1769800642032,13.13695388,2746.3,2744.5,0.001]
[1769800642248,13.13695388,2746.1,2744.5,0.001]
[1769800642451,0.1024,2745.9,2744.5,0.001]
[1769800642860,0.1024,2745.9,2745.0,0.001]
[1769800643261,0.91048146,2745.8,2745.0,0.001]
[1769800643467,0.46548073,2745.7,2744.5,0.001]
[1769800643975,0.91048146,2745.8,2744.5,13.77975302]
[1769800644330,0.91048146,2745.8,2744.5,0.001]
[1769800645361,3.64192585,2745.9,2744.5,0.001]
[1769800646083,0.3359703,2745.8,2744.5,0.001]
[1769800646257,13.23935388,2745.8,2744.5,0.001]
[1769800646452,0.2335703,2745.6,2744.5,0.001]
[1769800646663,0.763,2745.5,2744.5,0.001]
[1769800647381,0.91061411,2745.4,2744.5,0.001]
[1769800648564,0.1024,2745.3,2744.5,0.001]
[1769800648893,0.1024,2745.3,2743.2,0.91132831]
[1769800648894,13.00578358,2745.1,2743.2,0.91132831]
[1769800649194,1.30057836,2745.0,2743.5,13.77875302]
[1769800649363,0.91068046,2745.2,2743.8,14.68989789]
[1769800651795,0.91058095,2745.5,2743.8,14.68989789]
[1769800654287,0.91058095,2745.5,2744.0,0.001]
[1769800654592,13.23935388,2745.4,2744.0,0.001]
[1769800654793,13.00578358,2745.1,2743.4,13.77875302]
[1769800655984,0.91074681,2745.0,2743.4,13.77875302]
[1769800656191,0.91074681,2745.0,2743.4,14.69003036]
[1769800656887,1.41499348,2745.3,2743.4,14.69003036]
[1769800657087,1.68812797,2745.7,2743.4,14.69003036]
[1769800657088,0.1024,2745.6,2743.7,13.41942469]
[1769800657261,3.64219114,2745.8,2743.9,12.95121642]
[1769800657457,10.6211,2746.3,2744.3,12.95121642]
[1769800657658,0.002,2746.5,2744.9,12.95121642]
[1769800657891,14.26121907,2747.2,2745.7,12.95121642]
[1769800657892,10.6211,2747.2,2745.7,12.95121642]
[1769800658098,0.0004,2747.4,2746.0,12.95041642]
[1769800658301,0.0004,2747.4,2746.1,12.95121642]
[1769800658592,0.91035164,2747.4,2746.1,12.95121642]
[1769800660105,0.0004,2747.4,2746.3,12.95121642]
[1769800661609,0.005,2747.8,2746.1,0.91037932]
[1769800661610,0.0004,2747.8,2746.4,12.95121642]
[1769800661814,0.0004,2747.8,2746.6,12.95121642]
[1769800661978,0.0004,2747.8,2746.8,13.86136641]
[1769800662715,0.002,2748.6,2747.5,12.95121642]
[1769800662887,0.91234729,2749.3,2747.7,12.95121642]
[1769800663070,0.003,2749.3,2747.7,12.95121642]
[1769800663274,0.003,2749.3,2747.8,12.95121642]
[1769800663502,0.003,2749.3,2747.7,12.95121642]
[1769800663912,0.90926347,2749.5,2747.8,12.95121642]
[1769800664204,1.01139174,2750.3,2748.0,12.95121642]
[1769800666195,1.01139174,2750.3,2748.2,12.95121642]
[1769800667200,0.002,2750.1,2748.2,12.95121642]
[1769800667603,12.79052366,2750.1,2748.2,12.95121642]
[1769800667802,13.12449396,2750.0,2747.7,12.95121642]
[1769800668121,0.3359703,2749.8,2747.7,13.86106176]
[1769800668322,0.1024,2749.8,2747.7,13.86106176]
[1769800668697,0.3359703,2749.8,2747.7,13.86106176]
[1769800668892,0.1024,2749.6,2747.7,12.95121642]
[1769800669098,0.2335703,2749.3,2747.2,13.86123089]
[1769800669720,0.1024,2749.2,2747.5,12.95121642]
[1769800670126,1.14295882,2749.1,2747.5,12.95121642]
[1769800670425,0.90938852,2749.1,2747.5,12.95121642]
[1769800670605,0.46493426,2749.0,2747.6,12.95121642]
[1769800670805,0.90938852,2749.1,2747.6,12.95121642]
[1769800672128,3.6375541,2749.2,2747.2,0.91000906]
[1769800672336,3.6375541,2749.2,2747.2,13.86122548]
[1769800675719,3.6375541,2749.2,2747.4,12.95121642]
[1769800676424,3.6375541,2749.2,2747.6,12.95121642]
[1769800676619,0.72751082,2749.1,2747.8,12.95121642]
[1769800676928,3.6375541,2749.3,2747.8,12.95121642]
[1769800677315,3.6375541,2749.3,2747.4,13.86116662]
[1769800677843,0.2335703,2748.7,2746.9,12.95121642]
[1769800678155,6.24545665,2748.9,2746.4,12.95121642]
[1769800678156,0.1024,2748.4,2746.4,12.95121642]
[1769800678443,0.90971944,2748.1,2746.4,12.95121642]
[1769800678625,0.90971944,2748.1,2746.4,13.86149405]
[1769800678825,0.46509972,2748.0,2746.4,13.86149405]
[1769800679646,0.46509972,2748.0,2747.4,0.001]
[1769800679942,0.90958704,2748.5,2747.4,0.001]
[1769800680445,3.63737865,2749.3,2747.5,0.9099181]
[1769800680623,3.63737865,2749.3,2747.5,13.86113452]
[1769800680824,0.45466679,2749.2,2747.6,12.95121642]
[1769800682325,0.90928929,2749.4,2747.6,12.95121642]
[1769800682646,0.002,2750.1,2748.4,12.95121642]
[1769800682847,3.63348958,2752.2,2749.8,12.95121642]
[1769800683054,0.18984608,2752.0,2749.9,4.607]
[1769800683255,0.91059883,2751.5,2749.9,4.607]
[1769800683555,0.91060026,2751.5,2749.9,4.607]
[1769800683759,0.91060026,2751.5,2749.9,0.762]
[1769800683963,0.91060026,2751.5,2749.1,0.762]
[1769800683964,13.69912392,2751.5,2749.1,0.762]
[1769800684445,12.78852366,2751.1,2749.1,0.762]
[1769800684650,12.78852366,2750.7,2749.1,0.762]
[1769800684853,12.78852366,2750.3,2748.5,0.90957935]
[1769800685025,12.78852366,2750.3,2748.4,0.762]
[1769800685233,12.78852366,2750.3,2748.4,1.67161862]
[1769800686067,12.78852366,2750.3,2748.4,1.67161843]
[1769800686371,12.78852366,2750.3,2748.4,0.762]
[1769800686537,13.8014808,2750.0,2748.4,0.762]
[1769800686743,12.8923899,2749.8,2746.9,16.94760808]
[1769800686933,12.8923899,2749.6,2747.5,0.90991139]
[1769800687265,12.8923899,2749.6,2747.7,0.90984585]
[1769800687425,12.8923899,2749.6,2748.0,3.63890299]
[1769800687631,0.9090909,2750.0,2748.4,0.90961235]
[1769800687830,0.9090909,2750.0,2748.3,0.90963051]
[1769800688252,0.9090909,2750.0,2748.2,0.90968211]
[1769800688448,13.8014808,2750.0,2748.0,0.90973637]
[1769800688762,13.80154692,2749.8,2747.5,0.9099181]
[1769800688964,1.7540575,2749.7,2747.6,13.30722061]
[1769800689163,13.80154692,2749.8,2747.6,13.30722061]
[1769800689659,0.90915702,2749.8,2747.6,13.30722061]
[1769800690028,0.90915702,2749.8,2747.9,21.70718761]
[1769800690226,0.90915702,2749.8,2747.5,4.7549181]
[1769800690425,0.90915702,2749.8,2747.5,0.9099181]
[1769800690664,0.90922315,2749.6,2747.7,0.90985187]
[1769800691558,0.90922315,2749.6,2747.7,14.21707248]
[1769800691967,0.90922315,2749.6,2747.9,13.30722061]
[1769800692463,0.90922315,2749.6,2748.0,5.707933]
[1769800692633,3.63629489,2750.1,2748.1,0.90971944]
[1769800692830,4.58233854,2750.1,2748.1,0.90971944]
[1769800693272,0.90895869,2750.4,2748.3,13.30722061]
[1769800693438,0.90892696,2750.5,2748.6,17.15222061]
[1769800693639,0.90892696,2750.5,2748.7,14.06922061]
[1769800694670,3.63521962,2750.9,2748.8,0.90948777]
[1769800695172,3.73757394,2751.3,2748.8,0.90948777]
[1769800695173,0.90862833,2751.4,2749.1,13.30722061]
[1769800695350,0.90853496,2751.7,2749.6,13.30722061]
[1769800695533,0.90855073,2751.7,2749.7,13.30722061]
[1769800695737,3.63387274,2751.9,2749.7,13.30722061]
[1769800696080,0.90858332,2751.6,2749.9,3.398922]
[1769800696278,3.63365611,2752.1,2750.0,0.762]
[1769800696440,12.8923899,2752.2,2750.0,0.762]
[1769800696647,3.63363207,2752.1,2750.1,0.90905785]
[1769800696844,3.63315607,2752.5,2750.1,14.21627846]
[1769800697065,0.90829821,2752.4,2750.2,13.40762061]
[1769800697579,3.6328081,2752.7,2750.6,13.30522061]
[1769800698155,12.8923899,2752.6,2750.3,0.1024]
[1769800698362,3.6328081,2752.7,2750.6,13.30522061]
[1769800698665,0.90826521,2752.5,2750.7,0.90885956]
[1769800698865,0.90826521,2752.5,2750.7,14.21408017]
[1769800699168,0.90826521,2752.5,2750.7,0.90885956]
[1769800699882,13.80065511,2752.5,2750.7,0.90885956]
[1769800700699,13.80065511,2752.5,2750.3,3.63588901]
[1769800700849,1.78878167,2752.4,2750.3,3.63588901]
[1769800701679,14.68117157,2752.4,2750.3,3.63588901]
[1769800702794,0.90833121,2752.3,2750.1,3.6361693]
[1769800703082,13.80072111,2752.3,2750.1,3.6361693]
[1769800703287,12.8923899,2752.1,2750.0,0.762]
[1769800703585,12.8923899,2751.9,2750.0,1.67106736]
[1769800704788,0.90849625,2751.8,2750.0,1.67106736]
[1769800704972,0.90849625,2751.8,2750.0,1.67107688]
[1769800704973,12.8923899,2751.7,2750.0,1.67107688]
[1769800706377,0.90849625,2751.8,2750.0,1.67107688]
[1769800706774,16.52637492,2751.9,2750.0,1.67107688]
[1769800707081,14.76481762,2751.8,2750.0,1.67107688]
[1769800709186,0.90852927,2751.7,2750.0,1.67107688]
[1769800709586,13.80091917,2751.7,2750.0,1.67109052]
[1769800710365,13.80091917,2751.7,2750.0,0.762]
[1769800710710,13.80091917,2751.7,2750.0,1.67108779]
[1769800710711,12.8923899,2751.5,2750.0,1.67108779]
[1769800711478,0.90862833,2751.4,2750.0,1.67108779]
[1769800713703,12.8923899,2751.4,2750.0,1.67108378]
[1769800713876,12.8923899,2751.4,2750.0,1.67107731]
[1769800714403,12.8923899,2751.4,2750.0,0.762]
[1769800714583,12.8923899,2751.2,2750.0,0.762]
[1769800714783,12.8923899,2751.2,2749.7,0.909186]
[1769800714983,12.8923899,2751.2,2749.6,0.90920444]
[1769800715372,12.8923899,2751.2,2750.2,0.001]
[1769800715577,0.90872741,2751.1,2750.2,0.001]
[1769800717117,1.50389086,2751.1,2750.2,0.001]
[1769800717508,14.32334199,2751.8,2750.2,0.001]
[1769800717709,3.63421003,2751.7,2750.2,0.001]
[1769800719117,0.90839722,2752.1,2750.3,12.9692198]
[1769800719309,0.90839722,2752.1,2750.4,12.9692198]
[1769800719512,0.002,2752.2,2750.6,12.9692198]
[1769800719818,0.90817904,2752.8,2751.1,12.9692198]
[1769800720312,0.90817904,2752.8,2751.6,14.5]
[1769800720520,0.90811176,2753.0,2751.6,14.5]
[1769800721637,3.63203238,2753.3,2751.7,0.90852927]
[1769800721821,13.41481272,2753.2,2751.7,0.90852927]
[1769800722135,13.41481272,2753.2,2751.1,16.6040568]
[1769800722445,13.41481272,2753.2,2751.8,14.5]
[1769800723426,13.41481272,2753.2,2751.3,0.90864001]
[1769800723622,13.41481272,2753.0,2750.8,3.6352795]
[1769800723948,13.41481272,2752.8,2750.8,3.6352795]
[1769800724243,1.432288,2752.9,2750.9,12.9692198]
[1769800724463,0.90806726,2753.1,2751.6,14.5]
[1769800724855,14.32287998,2753.1,2751.6,14.5]
[1769800725566,15.08387998,2753.1,2751.6,14.5]
[1769800725764,13.41481272,2752.9,2750.7,0.761]
[1769800725929,13.41481272,2752.5,2749.9,3.63649185]
[1769800726128,13.41481272,2752.5,2750.5,0.90891934]
[1769800726325,13.41481272,2752.5,2750.4,0.90893582]
[1769800726526,13.41481272,2752.5,2750.4,0.90895489]
[1769800726763,13.41481272,2752.5,2750.4,0.90995489]
[1769800727062,13.41481272,2752.3,2750.4,0.001]
[1769800727361,13.41481272,2752.1,2750.4,0.001]
[1769800727568,13.41481272,2751.9,2750.4,0.001]
[1769800727775,13.41481272,2751.9,2750.2,0.001]
[1769800727776,13.41481272,2751.7,2750.2,0.001]
[1769800728069,13.41481272,2751.3,2748.8,3.63790327]
[1769800728255,13.41481272,2751.1,2748.8,0.90946649]
[1769800728456,13.41481272,2751.1,2748.9,14.5]
[1769800728971,13.41481272,2751.1,2749.0,0.90942097]
[1769800729141,13.41481272,2751.1,2748.9,14.5]
[1769800729342,13.41481272,2751.1,2749.5,0.90923629]
[1769800729565,0.90879348,2750.9,2749.4,0.90926898]
[1769800729860,13.41481272,2750.8,2749.4,0.90926745]
[1769800730030,13.41481272,2750.8,2749.5,0.90925544]
[1769800730231,0.90879348,2750.9,2749.5,0.90925544]
[1769800730434,0.90869438,2751.2,2749.5,0.90925544]
[1769800730633,0.90869438,2751.2,2749.5,13.87847524]
[1769800730833,0.90852927,2751.7,2749.6,12.9692198]
[1769800731068,0.90852927,2751.7,2750.1,14.5]
[1769800731069,14.32334199,2751.7,2750.1,14.5]
[1769800731988,14.32334199,2751.7,2750.1,15.40903265]
[1769800731989,0.90852927,2751.7,2750.1,15.40903265]
[1769800732479,0.90833121,2752.3,2750.3,12.9692198]
[1769800732659,0.90833121,2752.3,2750.1,0.90903265]
[1769800732838,14.32314393,2752.3,2750.6,14.5]
[1769800734241,14.32314393,2752.3,2750.3,0.761]
[1769800734470,13.41481272,2751.9,2750.3,0.761]
[1769800734766,13.41481272,2751.9,2750.3,15.261]
[1769800734965,13.41481272,2751.7,2750.3,15.261]
[1769800735181,13.41481272,2751.7,2749.0,12.9692198]
[1769800735182,13.41481272,2751.7,2748.5,12.9692198]
[1769800735390,13.41481272,2751.5,2749.1,0.90937638]
[1769800735540,13.41481272,2751.1,2749.2,14.5]
[1769800735743,13.41481272,2750.9,2749.2,14.5]
[1769800735969,13.41481272,2750.5,2749.2,14.5]
[1769800736576,13.41481272,2750.3,2747.8,1.637]
[1769800736745,13.41481272,2750.3,2748.1,0.90971614]
[1769800736945,13.41481272,2750.3,2747.9,3.63911227]
[1769800737278,13.41481272,2750.1,2748.2,14.5]
[1769800737642,13.41481272,2749.3,2747.6,0.001]
[1769800737846,13.41481272,2749.1,2747.6,0.001]
[1769800739880,0.9094216,2749.0,2747.6,0.001]
[1769800740282,14.32423432,2749.0,2747.6,0.001]
[1769800740479,13.41481272,2748.8,2747.6,0.001]
[1769800740698,1.79619208,2748.9,2747.6,0.001]
[1769800740992,0.9094216,2749.0,2747.6,0.001]
[1769800741994,3.63768643,2749.2,2747.6,0.001]
[1769800742160,0.90925622,2749.5,2747.6,0.001]
[1769800742583,0.762,2749.9,2747.6,12.9702198]
[1769800742770,0.90915702,2749.8,2747.7,12.9692198]
[1769800743194,14.32396974,2749.8,2748.1,14.5]
[1769800744279,0.9090909,2750.0,2748.2,13.87890614]
[1769800744662,0.9090909,2750.0,2748.2,0.90968634]
[1769800744992,0.9090909,2750.0,2748.6,14.5]
[1769800745184,0.45454544,2749.9,2748.6,14.5]
[1769800746261,3.63636352,2750.1,2748.7,0.90952086]
[1769800746468,0.90885956,2750.7,2748.7,13.95695575]
[1769800746789,0.90862833,2751.4,2748.9,13.04743489]
[1769800746965,0.002,2751.5,2749.7,13.04743489]
[1769800747169,0.91060328,2751.5,2749.8,0.762]
[1769800747566,14.38715957,2751.5,2749.8,0.762]
[1769800747765,0.91060328,2751.5,2749.8,0.762]
[1769800748006,14.38715957,2751.5,2750.0,14.5]
[1769800748971,14.38715957,2751.5,2749.2,0.762]
[1769800749206,14.38715957,2751.5,2749.5,0.90925546]
[1769800749435,13.47655629,2751.1,2749.2,0.762]
[1769800749572,14.23855629,2751.1,2749.4,14.5]
[1769800750189,13.47655629,2750.9,2749.4,14.5]
[1769800751416,13.47655629,2750.3,2748.1,0.90969748]
[1769800751709,13.47655629,2750.1,2749.6,0.001]
[1769800751909,13.47655629,2750.1,2748.2,15.40886426]
[1769800752114,13.47655629,2750.1,2748.2,14.5]
[1769800752295,13.47655629,2749.9,2748.2,14.5]
[1769800753517,13.47655629,2749.9,2748.2,15.40965707]
[1769800753716,1.43856472,2749.8,2748.2,15.40965707]
[1769800753882,0.9090909,2750.0,2748.2,15.40965707]
[1769800754523,3.63636363,2750.1,2748.2,15.40965707]
[1769800754842,0.90895869,2750.4,2748.3,13.04743489]
[1769800755246,0.90895869,2750.4,2748.7,14.5]
[1769800755431,0.90895869,2750.4,2748.8,0.762]
[1769800756146,0.90895869,2750.4,2748.9,14.5]
[1769800757635,0.90876045,2751.0,2749.0,0.9094216]
[1769800757834,0.90876045,2751.0,2749.0,13.95685649]
[1769800758007,0.90876045,2751.0,2749.1,13.04743489]
[1769800758340,0.90876045,2751.0,2749.4,14.5]
[1769800758522,1.72664486,2751.0,2749.4,14.5]
[1769800759128,3.6350418,2751.1,2749.4,14.5]
[1769800759129,0.90874872,2751.1,2749.4,14.5]
[1769800759419,0.91067383,2751.3,2749.5,13.04743489]
[1769800759620,0.002,2751.3,2749.8,13.95659191]
[1769800759860,0.002,2751.3,2750.0,13.04743489]
[1769800760024,0.90839963,2752.1,2750.5,14.5]
[1769800760209,14.3848215,2752.6,2750.5,14.5]
[1769800760554,3.63296092,2752.6,2750.0,16.89243489]
[1769800760841,17.10951721,2752.6,2750.9,14.5]
[1769800761422,13.47655629,2752.5,2750.9,14.5]
[1769800761741,13.47655629,2752.3,2750.9,14.5]
[1769800761906,14.91504174,2752.2,2750.9,14.5]
[1769800762110,14.91504174,2752.2,2750.2,0.90902157]
[1769800762310,14.91504174,2752.2,2750.2,0.90902392]
[1769800762618,14.91504174,2752.2,2749.9,0.762]
[1769800762814,14.91504174,2752.2,2750.0,0.90909044]
[1769800763015,13.47655629,2752.0,2749.7,0.90916992]
[1769800763239,14.23855629,2752.0,2750.1,14.5]
[1769800763827,13.47655629,2751.8,2750.1,15.40903638]
[1769800765029,0.90846324,2751.9,2750.1,15.40903638]
[1769800766147,3.63585297,2752.0,2750.0,3.63633682]
[1769800766342,0.60357874,2751.9,2750.0,3.63633682]
[1769800766549,0.60357874,2751.9,2750.6,14.5]
[1769800766745,0.60357874,2751.9,2750.7,0.762]
[1769800768010,1.51206506,2751.9,2750.8,0.90882652]
[1769800768315,0.90848632,2751.9,2750.8,0.90882652]
[1769800768819,0.002,2752.0,2750.8,0.90882652]
[1769800769027,0.002,2752.2,2750.8,0.90882652]
[1769800769256,0.002,2752.2,2750.8,13.95626141]
[1769800769416,0.91038548,2752.2,2750.8,0.90882652]
[1769800769623,0.45438424,2752.1,2750.8,0.90882652]
[1769800769821,0.45438424,2752.1,2750.9,14.5]
[1769800770236,0.90841946,2752.1,2751.0,0.90876045]
[1769800770853,0.90841946,2752.1,2751.1,14.5]
[1769800771279,0.002,2752.2,2751.1,14.5]
[1769800772060,0.002,2752.7,2751.2,13.04743489]
[1769800772356,13.47855629,2752.7,2751.0,3.63494882]
[1769800772553,13.47855629,2752.7,2750.7,0.762]
[1769800772761,13.47855629,2752.7,2751.3,14.5]
[1769800772957,0.002,2752.7,2751.3,14.5]
[1769800773322,13.47655629,2752.6,2750.1,3.63618211]
[1769800773522,13.47655629,2752.6,2750.9,0.90877074]
[1769800773726,13.47655629,2752.6,2751.1,0.90872401]
[1769800773925,13.47655629,2752.6,2751.2,14.5]
[1769800774143,0.90826521,2752.5,2751.2,14.5]
[1769800774330,14.3848215,2752.5,2751.2,14.5]
[1769800774528,1.80178824,2752.4,2751.2,14.5]
[1769800774933,1.80178824,2752.4,2751.2,15.40869335]
[1769800775136,1.80178824,2752.4,2751.2,14.5]
[1769800775465,0.90826521,2752.5,2751.2,14.5]
[1769800775629,14.3848215,2752.5,2751.2,14.5]
[1769800776373,14.3868215,2752.5,2750.7,0.9088561]
[1769800776667,14.3868215,2752.5,2750.9,0.90879252]
[1769800776868,14.3868215,2752.5,2750.8,14.5]
[1769800777090,12.9430396,2752.3,2750.8,15.40882479]
[1769800777276,12.9430396,2752.3,2750.9,0.90879318]
[1769800777788,12.9430396,2752.3,2751.0,0.90874118]
[1769800777946,12.9430396,2752.3,2750.8,15.40880476]
[1769800778152,12.9430396,2752.3,2750.9,0.90878248]
[1769800778383,2.38286699,2752.2,2750.9,0.90877623]
[1769800779094,2.38286699,2752.2,2750.8,14.5]
[1769800779256,12.90632999,2752.1,2750.8,14.5]
[1769800779768,2.38286699,2752.2,2751.0,0.90875869]
[1769800780289,15.28919698,2752.2,2750.8,15.40880501]
[1769800780449,1.89226539,2752.1,2750.8,15.40880501]
[1769800780881,14.79859538,2752.1,2750.8,14.5]
[1769800781885,14.79859538,2752.1,2750.8,15.40882345]
[1769800782086,1.89226539,2752.1,2750.8,15.40882345]
[1769800782294,2.38286699,2752.2,2750.8,15.40882345]
[1769800782995,1.47450278,2752.2,2750.8,15.40882345]
[1769800783190,0.90831777,2752.4,2750.8,28.70504406]
[1769800783763,0.91028879,2752.5,2750.9,13.29622061]
[1769800784159,0.002,2752.5,2750.9,13.29622061]
[1769800784366,0.002,2752.5,2751.0,28.70498106]
[1769800784561,0.002,2752.5,2751.1,0.761]
[1769800785492,12.90832999,2752.5,2751.2,14.5]
[1769800786583,0.90829821,2752.4,2751.2,14.5]
[1769800787262,0.90829821,2752.4,2751.2,15.40867902]
[1769800787700,0.002,2752.5,2751.2,15.40867902]
[1769800788277,0.91026579,2752.5,2751.2,15.40867902]
[1769800788675,0.002,2752.5,2751.3,13.29622061]
[1769800788859,0.002,2752.7,2751.4,13.29222061]
[1769800789065,0.90812409,2753.0,2751.4,13.28822061]
[1769800789310,0.002,2753.4,2751.8,13.28822061]
[1769800789463,0.90999385,2753.4,2751.8,13.28822061]
[1769800789665,1.36436769,2753.4,2751.8,13.28822061]
[1769800789884,0.45637384,2753.4,2751.8,13.28822061]
[1769800790086,0.90998758,2753.4,2751.9,14.5]
[1769800790366,0.90998758,2753.4,2752.0,0.761]
[1769800790670,0.002,2753.4,2752.1,0.90839722]
[1769800791900,0.002,2753.7,2752.3,13.28822061]
[1769800792572,0.002,2753.7,2752.4,0.90829821]
[1769800792780,0.002,2753.7,2752.5,13.28622061]
[1769800794602,0.002,2753.7,2752.1,0.90839722]
[1769800795504,12.90832999,2753.7,2752.0,0.761]
[1769800795901,12.90832999,2753.7,2752.0,1.66942924]
[1769800796093,12.90632999,2753.5,2752.0,1.66942924]
[1769800796693,12.90632999,2753.3,2752.0,0.761]
[1769800797001,0.90796833,2753.4,2752.0,1.66941932]
[1769800797377,13.81429832,2753.4,2752.0,1.66941932]
[1769800799310,13.81429832,2753.4,2751.2,3.63472029]
[1769800799475,12.90632999,2753.2,2751.0,0.90974113]
[1769800799805,12.90632999,2753.2,2751.0,0.90972808]
[1769800799806,13.66732999,2753.1,2751.0,0.90972808]
[1769800799977,13.66732999,2753.1,2751.1,0.90872435]
[1769800800177,13.66732999,2753.1,2751.2,0.90869052]
[1769800800375,12.90632999,2752.9,2751.3,0.90866099]
[1769800800705,1.98944337,2753.0,2751.3,3.63463857]
[1769800800906,12.90632999,2753.0,2751.4,0.90859599]
[1769800801109,12.90632999,2753.0,2751.7,0.90850492]
[1769800801277,0.90813324,2752.9,2751.2,0.001]
[1769800801618,12.90632999,2752.7,2751.2,0.001]
[1769800801769,12.90632999,2752.4,2750.0,3.63632021]
[1769800802121,12.90632999,2752.2,2750.0,3.63632745]
[1769800802286,0.761,2752.1,2749.9,0.90910424]
[1769800802471,12.90632999,2752.0,2750.1,0.90905658]
[1769800802674,12.90632999,2752.0,2749.8,0.90913787]
[1769800802874,12.90632999,2752.0,2750.2,1.67002003]
[1769800803187,12.90632999,2752.0,2750.3,0.90897264]
[1769800803376,0.90849625,2751.8,2750.3,0.90897264]
[1769800804573,2.27521976,2751.9,2750.3,14.19719325]
[1769800804997,0.90819922,2752.7,2750.5,13.28822061]
[1769800805310,0.90819922,2752.7,2750.7,13.28822061]
[1769800805684,0.90803428,2753.2,2750.9,13.28822061]
[1769800805915,16.53746008,2754.0,2751.1,13.28822061]
[1769800806213,16.53746008,2754.0,2751.0,12.47339682]
[1769800806214,3.62939433,2755.3,2752.9,6.22710374]
[1769800806386,0.91033096,2755.4,2753.2,13.28122061]
[1769800806575,0.91033096,2755.4,2753.4,13.28122061]
[1769800806973,14.37704365,2755.4,2752.8,13.28122061]
[1769800807222,14.37704365,2755.4,2752.2,6.22710374]
[1769800807223,1.80062572,2755.3,2752.9,14.04222061]
[1769800807382,0.90737514,2755.2,2753.4,13.28122061]
[1769800807794,0.90735835,2755.3,2753.4,13.28122061]
[1769800808611,0.90735835,2755.3,2753.2,0.90803428]
[1769800808910,0.90735835,2755.3,2753.2,14.18925489]
[1769800809102,0.90735835,2755.3,2753.4,13.28122061]
[1769800809608,3.63236885,2755.4,2753.6,13.28122061]
[1769800809609,0.003,2755.4,2753.6,13.28122061]
[1769800810313,13.46971269,2756.1,2753.9,0.1024]
[1769800810314,0.003,2756.1,2753.9,0.1024]
[1769800810610,1.69452037,2756.8,2755.0,10.08546792]
[1769800810832,2.60136953,2756.8,2755.1,0.761]
[1769800810985,0.62287636,2756.7,2755.1,0.761]
[1769800811194,0.62287636,2756.7,2755.1,10.84646792]
[1769800811378,1.69452037,2756.8,2755.2,0.90737514]
[1769800811577,2.60136923,2756.8,2755.2,10.99284306]
[1769800812179,2.60136923,2756.8,2755.1,1.66839649]
[1769800812585,0.002,2756.6,2755.1,1.66840784]
[1769800813339,1.66768526,2757.6,2755.7,5.10963663]
[1769800813495,1.66768526,2757.6,2756.1,9.29905]
[1769800813683,2.57427178,2757.6,2756.0,0.90711175]
[1769800814337,16.04098447,2757.6,2754.4,21.2421]
[1769800814494,16.04098447,2757.6,2755.1,4.39059075]
[1769800814681,16.04098447,2757.6,2755.3,0.9073208]
[1769800814881,13.46671269,2757.4,2755.4,0.90730163]
[1769800815135,13.46671269,2757.4,2755.7,0.90717957]
[1769800815294,13.46671269,2757.4,2755.4,0.90730314]
[1769800815622,13.46671269,2757.2,2755.2,0.90737514]
[1769800815794,13.46671269,2757.2,2755.1,1.66838701]
[1769800816007,13.46671269,2757.0,2755.1,1.66838701]
[1769800816324,13.46671269,2757.0,2755.1,0.761]
[1769800816495,13.46671269,2757.0,2755.1,1.66839122]
[1769800817591,0.90681562,2756.9,2755.1,1.66839122]
[1769800818848,1.43733968,2757.1,2755.3,5.10963663]
[1769800818999,0.9066892,2757.3,2755.2,5.10963663]
[1769800819351,0.9066892,2757.3,2755.1,1.66839122]
[1769800819352,14.37340189,2757.3,2755.1,1.66839122]
[1769800819634,3.62660839,2757.4,2755.3,0.90734221]
[1769800820142,0.90661831,2757.5,2755.4,2.73855]
[1769800820326,0.90661831,2757.5,2755.6,3.086488]
[1769800820536,1.66768526,2757.6,2755.8,2.47169]
[1769800820850,1.66768526,2757.6,2756.0,8.93863663]
[1769800821070,2.5742813,2757.6,2755.4,5.10963663]
[1769800821251,16.04099399,2757.6,2755.3,0.90734221]
[1769800821767,16.04099399,2757.6,2755.2,3.62936885]